fUST/lending_fUST_20240810
["ID","MTS","AMOUNT","RATE_DAILY","PERIOD"]
[334588019,1723284639266,-596.49033491,0.00019556,2]
[334588020,1723284639275,-500.0,0.00019556,2]
[334588021,1723284639285,-596.49033491,0.00019556,2]
[334588022,1723284639294,-596.49033491,0.00019556,2]
[334588023,1723284639304,-596.49033491,0.00019556,2]
[334588024,1723284639314,-144724.40241157,0.00019557,11]
[334588025,1723284639323,-28545.19855257,0.00019558,2]
[334588026,1723284639332,-2061.17409297,0.00019558,2]
[334588027,1723284639342,-150.112233,0.000196,2]
[334588028,1723284639352,-170591.732364,0.00019647,2]
[334588029,1723284639361,-3890.95754357,0.00019675,2]
[334588030,1723284639370,-1412.0,0.00019741,2]
[334588031,1723284639380,-85295.8661819,0.00019742,2]
[334588032,1723284639390,-230.0,0.00019752,2]
[334588033,1723284639400,-230.0,0.00019752,2]
[334588034,1723284639410,-230.0,0.00019752,2]
[334588035,1723284639420,-430.0,0.00019752,2]
[334588036,1723284639431,-430.0,0.00019752,2]
[334588037,1723284639440,-430.0,0.00019752,2]
[334588038,1723284639449,-430.0,0.00019752,2]
[334588039,1723284639459,-430.0,0.00019752,2]
[334588040,1723284639470,-430.0,0.00019752,2]
[334588041,1723284639480,-238.0,0.00019752,2]
[334588042,1723284639489,-238.0,0.00019752,2]
[334588043,1723284639499,-238.0,0.00019752,2]
[334588044,1723284639509,-238.0,0.00019752,2]
[334588045,1723284639518,-238.0,0.00019752,2]
[334588046,1723284639527,-238.0,0.00019752,2]
[334588047,1723284639537,-238.0,0.00019752,2]
[334588048,1723284639546,-238.0,0.00019752,2]
[334588049,1723284639556,-238.0,0.00019752,2]
[334588050,1723284639565,-238.0,0.00019752,2]
[334588051,1723284639575,-238.0,0.00019752,2]
[334588052,1723284639584,-238.0,0.00019752,2]
[334588053,1723284639594,-238.0,0.00019752,2]
[334588054,1723284639603,-238.0,0.00019752,2]
[334588055,1723284639612,-238.0,0.00019752,2]
[334588056,1723284639622,-238.0,0.00019752,2]
[334588057,1723284639636,-238.0,0.00019752,2]
[334588058,1723284639645,-238.0,0.00019752,2]
[334588059,1723284639655,-238.0,0.00019752,2]
[334588060,1723284639664,-446.0,0.00019752,2]
[334588061,1723284639675,-446.0,0.00019752,2]
[334588062,1723284639685,-446.0,0.00019752,2]
[334588063,1723284639694,-446.0,0.00019752,2]
[334588064,1723284639707,-446.0,0.00019752,2]
[334588065,1723284639720,-446.0,0.00019752,2]
[334588066,1723284639735,-446.0,0.00019752,2]
[334588068,1723284639744,-446.0,0.00019752,2]
[334588069,1723284639755,-446.0,0.00019752,2]
[334588070,1723284639765,-446.0,0.00019752,2]
[334588071,1723284639775,-446.0,0.00019752,2]
[334588072,1723284639785,-446.0,0.00019752,2]
[334588073,1723284639795,-446.0,0.00019752,2]
[334588074,1723284639805,-446.0,0.00019752,2]
[334588075,1723284639814,-446.0,0.00019752,2]
[334588076,1723284639823,-259.0,0.00019752,2]
[334588077,1723284639834,-259.0,0.00019752,2]
[334588078,1723284639844,-259.0,0.00019752,2]
[334588079,1723284639854,-259.0,0.00019752,2]
[334588080,1723284639864,-259.0,0.00019752,2]
[334588081,1723284639874,-259.0,0.00019752,2]
[334588082,1723284639885,-259.0,0.00019752,2]
[334588083,1723284640052,-259.0,0.00019752,2]
[334588084,1723284640062,-259.0,0.00019752,2]
[334588085,1723284640072,-259.0,0.00019752,2]
[334588086,1723284640082,-259.0,0.00019752,2]
[334588087,1723284640092,-512.0,0.00019752,2]
[334588088,1723284640103,-512.0,0.00019752,2]
[334588089,1723284640113,-512.0,0.00019752,2]
[334588090,1723284640123,-512.0,0.00019752,2]
[334588091,1723284640133,-512.0,0.00019752,2]
[334588092,1723284640142,-512.0,0.00019752,2]
[334588093,1723284640153,-512.0,0.00019752,2]
[334588094,1723284640162,-512.0,0.00019752,2]
[334588095,1723284640171,-512.0,0.00019752,2]
[334588096,1723284640181,-512.0,0.00019752,2]
[334588098,1723284640191,-512.0,0.00019752,2]
[334588099,1723284640201,-512.0,0.00019752,2]
[334588100,1723284640211,-2000.0,0.000199,2]
[334588101,1723284640223,-150.112233,0.000199,2]
[334588102,1723284640233,-2775.13129998,0.000199,2]
[334588103,1723284640243,-4889.4524834,0.0001997,2]
[334588104,1723284640252,-266.71909344,0.0002,2]
[334588105,1723284640262,-1627.09162866,0.0002,2]
[334588106,1723284640271,-156.4788062,0.0002,2]
[334588107,1723284640281,-1444.82566449,0.0002,2]
[334588108,1723284640292,-427.3467713,0.0002,2]
[334588109,1723284640302,-294.33166663,0.0002,2]
[334588110,1723284640311,-346.25605686,0.0002,2]
[334588111,1723284640321,-155.09721933,0.0002,2]
[334588112,1723284640331,-171.57583552,0.0002,2]
[334588113,1723284640342,-1554.55416322,0.0002,2]
[334588114,1723284640351,-236.07053144,0.0002,2]
[334588115,1723284640362,-669974.72940049,0.0002,2]
[334588116,1723284640372,-154.83259253,0.0002,4]
[334588117,1723284640381,-40854.92824377,0.0002,2]
[334588118,1723284640391,-151.0,0.0002,2]
[334588119,1723284640400,-431.346872,0.0002,2]
[334588120,1723284640410,-431.346872,0.0002,2]
[334588121,1723284640419,-163.67414706,0.0002,2]
[334588122,1723284640429,-469.553891,0.0002,2]
[334588124,1723284640438,-151.0,0.0002,2]
[334588125,1723284640449,-469.553891,0.0002,2]
[334588126,1723284640459,-151.4401548,0.0002,2]
[334588127,1723284640470,-680.801386,0.0002,2]
[334588128,1723284640479,-680.801386,0.0002,2]
[334588129,1723284640489,-194.392481,0.0002,2]
[334588130,1723284640498,-194.392481,0.0002,2]
[334588131,1723284640508,-162.908206,0.0002,2]
[334588132,1723284640518,-162.908206,0.0002,2]
[334588133,1723284640527,-205.937812,0.0002,2]
[334588134,1723284640537,-205.937812,0.0002,2]
[334588135,1723284640545,-421.728504,0.00020031,2]
[334588136,1723284640555,-278.508602,0.00020031,2]
[334588137,1723284640565,-1632.575229,0.00020031,2]
[334588138,1723284640574,-1786.249728,0.00020031,2]
[334588139,1723284640584,-164.789857,0.00020031,2]
[334588141,1723284640593,-985.318794,0.00020031,2]
[334588143,1723284640602,-1134.374096,0.00020031,2]
[334588145,1723284640612,-306.0,0.00020164,2]
[334588147,1723284640620,-4889.4524834,0.00020247,2]
[334588149,1723284640634,-600.0,0.00020251,2]
[334588151,1723284640643,-150.0,0.00020258,2]
[334588153,1723284640652,-421.728504,0.00020282,2]
[334588154,1723284640662,-278.508602,0.00020282,2]
[334588157,1723284640671,-1632.575229,0.00020282,2]
[334588158,1723284640680,-1786.249728,0.00020282,2]
[334588160,1723284640690,-985.318794,0.00020282,2]
[334588162,1723284640699,-1134.374096,0.00020282,2]
[334588164,1723284640710,-150.0,0.00020309,2]
[334588166,1723284640721,-151.0,0.00020352,2]
[334588169,1723284640730,-150.112233,0.000204,2]
[334588170,1723284640739,-4889.4524834,0.00020446,2]
[334588172,1723284640749,-600.0,0.00020462,2]
[334588173,1723284640759,-151.0,0.00020476,2]
[334588174,1723284640768,-602.0,0.000205,2]
[334588176,1723284640777,-297.12317978,0.0002052,2]
[334588178,1723284640786,-421.728504,0.00020532,2]
[334588180,1723284640796,-278.508602,0.00020532,2]
[334588182,1723284640805,-1632.575229,0.00020532,2]
[334588184,1723284640814,-1786.249728,0.00020532,2]
[334588186,1723284640823,-985.318794,0.00020532,2]
[334588188,1723284640833,-1134.374096,0.00020532,2]
[334588190,1723284640842,-500.0,0.00020547,4]
[334588192,1723284640851,-500.0,0.00020547,4]
[334588194,1723284640860,-500.0,0.00020547,4]
[334588196,1723284640870,-500.0,0.00020547,4]
[334588198,1723284640879,-527.10261265,0.00020547,4]
[334588200,1723284640891,-1000.0,0.00020554,2]
[334588202,1723284640900,-1000.0,0.00020566,2]
[334588204,1723284640909,-4740.20060354,0.00020576,2]
[334588207,1723284640919,-4889.4524835,0.00020596,2]
[334588209,1723284640929,-1000.0,0.00020597,2]
[334588211,1723284640940,-151.0,0.000206,2]
[334588213,1723284640950,-600.0,0.00020673,2]
[334588215,1723284640961,-400.0,0.0002071,2]
[334588217,1723284640972,-400.0,0.0002071,2]
[334588219,1723284640981,-400.0,0.0002071,2]
[334588221,1723284640990,-151.0,0.00020724,2]
[334588223,1723284641000,-151.0,0.00020724,2]
[334588225,1723284641010,-328.70707109,0.0002074,2]
[334588227,1723284641019,-215.33430216,0.00020761,2]
[334588229,1723284641028,-421.728504,0.00020782,2]
[334588231,1723284641037,-278.508602,0.00020782,2]
[334588233,1723284641046,-1632.575229,0.00020782,2]
[334588235,1723284641055,-1786.249728,0.00020782,2]
[334588237,1723284641065,-985.318794,0.00020782,2]
[334588238,1723284641074,-1134.374096,0.00020782,2]
[334588240,1723284641083,-1000.0,0.00020795,2]
[334588242,1723284641092,-500.0,0.000208,2]
[334588244,1723284641101,-300.0,0.000208,9]
[334588246,1723284641110,-150.01,0.0002082,2]
[334588248,1723284641120,-2993.33781285,0.0002082,2]
[334588250,1723284641129,-323.75256006,0.0002082,3]
[334588251,1723284641138,-63255.28096597,0.00020821,11]
[334588252,1723284641148,-499.15623592,0.00020821,3]
[334588253,1723284641158,-10494.9163161,0.00020821,2]
[334588254,1723284641168,-502.85179291,0.00020821,3]
[334588255,1723284641179,-294.08246711,0.00020821,3]
[334588256,1723284641188,-307.00971664,0.00020821,3]
[334588257,1723284641198,-500.0,0.00020821,3]
[334588258,1723284641208,-340.34802559,0.00020821,3]
[334588259,1723284641219,-151.561584,0.00020821,2]
[334588260,1723284641230,-500.0,0.00020821,3]
[334588261,1723284641240,-548.54323977,0.00020821,3]
[334588262,1723284641249,-499.66752447,0.00020821,3]
[334588263,1723284641259,-532.04310518,0.00020821,3]
[334588264,1723284641268,-500.0,0.00020821,3]
[334588265,1723284641278,-534.01,0.00020821,3]
[334588266,1723284641287,-500.0,0.00020821,3]
[334588267,1723284641296,-500.0,0.00020821,3]
[334588268,1723284641307,-500.0,0.00020821,3]
[334588269,1723284641316,-500.0,0.00020821,3]
[334588270,1723284641325,-503.22265799,0.00020821,3]
[334588271,1723284641335,-500.0,0.00020821,3]
[334588272,1723284641344,-508.26,0.00020821,3]
[334588273,1723284641353,-500.0,0.00020821,3]
[334588274,1723284641362,-500.0,0.00020821,3]
[334588275,1723284641372,-500.0,0.00020821,2]
[334588276,1723284641381,-500.0,0.00020821,3]
[334588277,1723284641391,-500.0,0.00020821,3]
[334588278,1723284641400,-511.8848177,0.00020821,3]
[334588279,1723284641410,-500.0,0.00020821,3]
[334588280,1723284641419,-500.0,0.00020821,3]
[334588281,1723284641429,-500.0,0.00020821,3]
[334588282,1723284641438,-500.0,0.00020821,3]
[334588283,1723284641448,-500.0,0.00020821,3]
[334588284,1723284641459,-506.54260468,0.00020821,3]
[334588285,1723284641470,-500.0,0.00020821,3]
[334588286,1723284641480,-511.72647619,0.00020821,3]
[334588287,1723284641489,-500.0,0.00020821,3]
[334588288,1723284641499,-504.40931227,0.00020821,3]
[334588289,1723284641508,-500.0,0.00020821,3]
[334588290,1723284641517,-500.0,0.00020821,3]
[334588291,1723284641526,-500.0,0.00020821,3]
[334588292,1723284641535,-500.0,0.00020821,3]
[334588293,1723284641545,-281.84091311,0.00020821,3]
[334588294,1723284641554,-500.0,0.00020821,3]
[334588295,1723284641564,-500.0,0.00020821,3]
[334588296,1723284641573,-500.0,0.00020821,3]
[334588297,1723284641583,-500.0,0.00020821,3]
[334588298,1723284641592,-500.0,0.00020821,3]
[334588299,1723284641601,-500.0,0.00020821,3]
[334588300,1723284641610,-500.0,0.00020821,3]
[334588301,1723284641620,-504.71106364,0.00020821,3]
[334588302,1723284641631,-500.0,0.00020821,3]
[334588303,1723284641640,-500.0,0.00020821,3]
[334588304,1723284641649,-500.0,0.00020821,3]
[334588305,1723284641658,-500.0,0.00020821,3]
[334588306,1723284641667,-500.0,0.00020821,3]
[334588307,1723284641680,-500.0,0.00020821,3]
[334588308,1723284641690,-500.0,0.00020821,3]
[334588309,1723284641701,-504.65633265,0.00020821,3]
[334588310,1723284641711,-503.71574854,0.00020821,3]
[334588311,1723284641721,-500.0,0.00020821,3]
[334588312,1723284641731,-500.0,0.00020821,3]
[334588313,1723284641741,-505.01487079,0.00020821,3]
[334588314,1723284641750,-500.0,0.00020821,3]
[334588315,1723284641760,-500.0,0.00020821,3]
[334588316,1723284641769,-503.67555444,0.00020821,3]
[334588317,1723284641779,-500.0,0.00020821,3]
[334588318,1723284641787,-500.0,0.00020821,3]
[334588319,1723284641797,-500.0,0.00020821,3]
[334588320,1723284641807,-500.0,0.00020821,3]
[334588321,1723284641816,-500.0,0.00020821,3]
[334588322,1723284641825,-500.0,0.00020821,3]
[334588323,1723284641834,-503.52683655,0.00020821,3]
[334588324,1723284641843,-645.5874551,0.00020821,3]
[334588325,1723284641852,-500.0,0.00020821,3]
[334588326,1723284641862,-424.3057506,0.00020821,3]
[334588327,1723284641871,-500.0,0.00020821,3]
[334588328,1723284641880,-504.25998553,0.00020821,3]
[334588329,1723284641889,-540.3996952,0.00020821,3]
[334588330,1723284641899,-500.0,0.00020821,3]
[334588331,1723284641909,-500.0,0.00020821,3]
[334588332,1723284641920,-500.0,0.00020821,3]
[334588333,1723284641929,-500.0,0.00020821,3]
[334588334,1723284641938,-500.0,0.00020821,3]
[334588335,1723284641948,-500.0,0.00020821,3]
[334588336,1723284641960,-587.01,0.00020821,3]
[334588337,1723284641971,-503.40803061,0.00020821,3]
[334588338,1723284641981,-500.0,0.00020821,3]
[334588339,1723284641990,-500.0,0.00020821,3]
[334588340,1723284642000,-500.0,0.00020821,3]
[334588341,1723284642009,-500.0,0.00020821,3]
[334588342,1723284642019,-500.0,0.00020821,3]
[334588343,1723284642028,-500.0,0.00020821,3]
[334588344,1723284642040,-500.0,0.00020821,3]
[334588345,1723284642050,-500.0,0.00020821,3]
[334588346,1723284642059,-500.0,0.00020821,3]
[334588347,1723284642069,-504.95043985,0.00020821,3]
[334588348,1723284642078,-153.381633,0.00020821,2]
[334588349,1723284642088,-501.66123053,0.00020821,3]
[334588350,1723284642098,-500.0,0.00020821,3]
[334588351,1723284642107,-500.0,0.00020821,3]
[334588352,1723284642117,-500.0,0.00020821,3]
[334588353,1723284642126,-502.09665698,0.00020821,3]
[334588354,1723284642135,-503.77877416,0.00020821,3]
[334588355,1723284642145,-503.68957715,0.00020821,3]
[334588356,1723284642155,-500.0,0.00020821,3]
[334588357,1723284642165,-507.84298305,0.00020821,3]
[334588358,1723284642174,-500.0,0.00020821,3]
[334588359,1723284642184,-500.0,0.00020821,3]
[334588360,1723284642193,-500.0,0.00020821,3]
[334588361,1723284642203,-790.6,0.00020821,3]
[334588362,1723284642212,-500.0,0.00020821,3]
[334588363,1723284642223,-500.0,0.00020821,3]
[334588364,1723284642232,-500.0,0.00020821,3]
[334588365,1723284642242,-500.0,0.00020821,3]
[334588366,1723284642251,-151.0,0.00020821,2]
[334588367,1723284642261,-151.0,0.00020821,2]
[334588368,1723284642270,-500.0,0.00020821,3]
[334588369,1723284642280,-310.67868325,0.00020821,3]
[334588370,1723284642289,-502.8818134,0.00020821,3]
[334588371,1723284642298,-202.876898,0.00020821,2]
[334588372,1723284642308,-500.0,0.00020821,3]
[334588373,1723284642319,-500.0,0.00020821,3]
[334588374,1723284642328,-500.0,0.00020821,3]
[334588375,1723284642338,-151.0,0.00020821,2]
[334588376,1723284642347,-506.06967238,0.00020821,3]
[334588377,1723284642357,-151.0,0.00020821,2]
[334588378,1723284642367,-536.2667604,0.00020821,3]
[334588379,1723284642377,-500.0,0.00020821,3]
[334588380,1723284642386,-1052.4,0.00020821,3]
[334588381,1723284642396,-883.7,0.00020821,3]
[334588382,1723284642406,-500.0,0.00020821,3]
[334588383,1723284642416,-500.0,0.00020821,3]
[334588384,1723284642425,-500.0,0.00020821,3]
[334588385,1723284642435,-502.47891096,0.00020821,3]
[334588386,1723284642445,-505.43566481,0.00020821,3]
[334588387,1723284642454,-500.0,0.00020821,3]
[334588388,1723284642463,-500.0,0.00020821,3]
[334588389,1723284642476,-500.0,0.00020821,3]
[334588390,1723284642486,-1081.23,0.00020821,3]
[334588391,1723284642495,-500.0,0.00020821,3]
[334588392,1723284642504,-500.0,0.00020821,3]
[334588393,1723284642514,-500.0,0.00020821,3]
[334588394,1723284642523,-1095.95,0.00020821,3]
[334588395,1723284642533,-500.0,0.00020821,3]
[334588396,1723284642543,-500.0,0.00020821,3]
[334588397,1723284642552,-1155.57,0.00020821,3]
[334588398,1723284642561,-500.0,0.00020821,3]
[334588399,1723284642571,-219.30487628,0.00020821,3]
[334588400,1723284642580,-500.0,0.00020821,3]
[334588401,1723284642710,-503.75870773,0.00020821,3]
[334588402,1723284642722,-500.0,0.00020821,3]
[334588403,1723284642737,-500.0,0.00020821,3]
[334588404,1723284642746,-500.0,0.00020821,3]
[334588406,1723284642756,-505.59162293,0.00020821,3]
[334588408,1723284642765,-500.0,0.00020821,3]
[334588409,1723284642774,-500.0,0.00020821,3]
[334588411,1723284642783,-500.0,0.00020821,3]
[334588412,1723284642794,-527.758689,0.00020821,3]
[334588413,1723284642803,-500.0,0.00020821,3]
[334588414,1723284642812,-500.0,0.00020821,3]
[334588415,1723284642821,-500.0,0.00020821,3]
[334588416,1723284642831,-500.0,0.00020821,3]
[334588417,1723284642840,-505.25367923,0.00020821,3]
[334588418,1723284642849,-500.0,0.00020821,3]
[334588420,1723284642859,-500.0,0.00020821,3]
[334588421,1723284642868,-1049.95,0.00020821,3]
[334588422,1723284642877,-406.81594378,0.00020821,3]
[334588424,1723284642887,-500.0,0.00020821,3]
[334588425,1723284642896,-500.0,0.00020821,3]
[334588426,1723284642906,-565.29734231,0.00020821,3]
[334588428,1723284642915,-500.0,0.00020821,3]
[334588430,1723284642925,-500.0,0.00020821,3]
[334588432,1723284642934,-151.0,0.00020821,2]
[334588434,1723284642944,-687.21,0.00020821,3]
[334588436,1723284642953,-500.0,0.00020821,3]
[334588438,1723284642962,-196.75710832,0.00020821,3]
[334588440,1723284642973,-500.0,0.00020821,3]
[334588442,1723284642983,-584.44,0.00020821,3]
[334588443,1723284642992,-500.0,0.00020821,3]
[334588444,1723284643001,-500.0,0.00020821,3]
[334588445,1723284643010,-500.0,0.00020821,3]
[334588446,1723284643020,-500.0,0.00020821,3]
[334588447,1723284643029,-506.74375151,0.00020821,3]
[334588448,1723284643040,-151.0,0.00020821,2]
[334588449,1723284643051,-151.0,0.00020821,2]
[334588450,1723284643061,-500.0,0.00020821,3]
[334588451,1723284643071,-505.11462333,0.00020821,3]
[334588452,1723284643080,-500.0,0.00020821,3]
[334588453,1723284643089,-500.0,0.00020821,3]
[334588454,1723284643098,-500.0,0.00020821,3]
[334588455,1723284643108,-355.22870848,0.00020821,3]
[334588456,1723284643117,-500.0,0.00020821,3]
[334588457,1723284643126,-500.0,0.00020821,3]
[334588458,1723284643135,-151.0,0.00020821,2]
[334588459,1723284643144,-151.0,0.00020821,2]
[334588460,1723284643155,-151.0,0.00020821,2]
[334588461,1723284643166,-500.0,0.00020821,3]
[334588462,1723284643175,-505.29704672,0.00020821,3]
[334588463,1723284643184,-509.49445872,0.00020821,3]
[334588464,1723284643194,-500.0,0.00020821,3]
[334588465,1723284643204,-500.0,0.00020821,3]
[334588466,1723284643214,-1157.21,0.00020821,3]
[334588467,1723284643224,-516.41732021,0.00020821,3]
[334588468,1723284643234,-1239.83,0.00020821,3]
[334588469,1723284643243,-515.35381011,0.00020821,3]
[334588470,1723284643253,-500.0,0.00020821,3]
[334588471,1723284643264,-509.15636668,0.00020821,3]
[334588472,1723284643273,-500.0,0.00020821,3]
[334588473,1723284643283,-500.0,0.00020821,3]
[334588474,1723284643292,-500.0,0.00020821,3]
[334588475,1723284643301,-151.0,0.00020821,2]
[334588476,1723284643310,-500.0,0.00020821,3]
[334588477,1723284643319,-153.818964,0.00020821,2]
[334588478,1723284643329,-684.91,0.00020821,3]
[334588479,1723284643337,-500.0,0.00020821,3]
[334588480,1723284643347,-500.0,0.00020821,3]
[334588482,1723284643356,-500.0,0.00020821,3]
[334588484,1723284643365,-500.0,0.00020821,3]
[334588486,1723284643374,-500.0,0.00020821,3]
[334588488,1723284643383,-510.84567934,0.00020821,3]
[334588489,1723284643392,-500.0,0.00020821,3]
[334588490,1723284643401,-500.0,0.00020821,3]
[334588491,1723284643410,-500.0,0.00020821,3]
[334588492,1723284643420,-201.40103009,0.00020821,3]
[334588493,1723284643429,-500.0,0.00020821,3]
[334588494,1723284643440,-855.13,0.00020821,3]
[334588495,1723284643449,-386.50973709,0.00020821,3]
[334588496,1723284643458,-506.19776692,0.00020821,3]
[334588497,1723284643468,-500.0,0.00020821,3]
[334588498,1723284643477,-500.0,0.00020821,3]
[334588499,1723284643486,-500.0,0.00020821,3]
[334588500,1723284643496,-500.0,0.00020821,3]
[334588501,1723284643505,-503.64010005,0.00020821,3]
[334588502,1723284643514,-500.0,0.00020821,3]
[334588503,1723284643524,-500.0,0.00020821,3]
[334588504,1723284643533,-500.0,0.00020821,3]
[334588505,1723284643543,-967.94,0.00020821,3]
[334588506,1723284643552,-500.0,0.00020821,3]
[334588507,1723284643561,-500.0,0.00020821,3]
[334588508,1723284643570,-500.0,0.00020821,3]
[334588509,1723284643579,-500.0,0.00020821,3]
[334588510,1723284643589,-500.0,0.00020821,3]
[334588511,1723284643598,-589.89506067,0.00020821,3]
[334588512,1723284643607,-500.0,0.00020821,3]
[334588513,1723284643618,-500.0,0.00020821,3]
[334588514,1723284643632,-500.0,0.00020821,3]
[334588515,1723284643642,-671.1,0.00020821,3]
[334588516,1723284643651,-500.0,0.00020821,3]
[334588517,1723284643661,-200.0,0.00020821,3]
[334588518,1723284643671,-186.76007375,0.00020821,3]
[334588519,1723284643680,-971.77,0.00020821,3]
[334588520,1723284643689,-500.0,0.00020821,3]
[334588521,1723284643699,-500.0,0.00020821,3]
[334588522,1723284643708,-500.0,0.00020821,3]
[334588523,1723284643718,-500.0,0.00020821,3]
[334588524,1723284643728,-570.85,0.00020821,2]
[334588525,1723284643737,-500.0,0.00020821,3]
[334588526,1723284643746,-500.0,0.00020821,3]
[334588527,1723284643755,-500.0,0.00020821,3]
[334588528,1723284643764,-504.54261853,0.00020821,3]
[334588529,1723284643775,-1068.4,0.00020821,3]
[334588530,1723284643784,-432.16777112,0.00020821,3]
[334588531,1723284643794,-683.1,0.00020821,3]
[334588532,1723284643802,-503.98973753,0.00020821,3]
[334588533,1723284643812,-1728.28,0.00020821,3]
[334588534,1723284643821,-503.14562305,0.00020821,3]
[334588535,1723284643831,-1020.31,0.00020821,3]
[334588536,1723284643840,-503.45749089,0.00020821,3]
[334588537,1723284643850,-153.37210949,0.00020821,3]
[334588538,1723284643860,-572.97,0.00020821,3]
[334588539,1723284643870,-500.0,0.00020821,3]
[334588540,1723284643879,-500.0,0.00020821,3]
[334588541,1723284643889,-500.0,0.00020821,3]
[334588542,1723284643898,-500.0,0.00020821,3]
[334588543,1723284643907,-688.42,0.00020821,3]
[334588544,1723284643918,-561.83,0.00020821,3]
[334588545,1723284643928,-500.0,0.00020821,3]
[334588546,1723284643937,-500.0,0.00020821,3]
[334588548,1723284643946,-857.64,0.00020821,3]
[334588549,1723284643956,-500.0,0.00020821,3]
[334588550,1723284643966,-500.0,0.00020821,3]
[334588551,1723284643977,-500.0,0.00020821,3]
[334588552,1723284643986,-500.0,0.00020821,3]
[334588553,1723284643995,-505.25550787,0.00020821,3]
[334588554,1723284644005,-500.0,0.00020821,3]
[334588555,1723284644014,-500.0,0.00020821,3]
[334588556,1723284644023,-500.0,0.00020821,3]
[334588557,1723284644033,-806.88,0.00020821,3]
[334588558,1723284644042,-500.0,0.00020821,3]
[334588559,1723284644052,-502.81179889,0.00020821,3]
[334588560,1723284644061,-500.0,0.00020821,3]
[334588561,1723284644071,-500.0,0.00020821,3]
[334588562,1723284644080,-500.0,0.00020821,3]
[334588563,1723284644089,-500.0,0.00020821,3]
[334588564,1723284644098,-500.0,0.00020821,3]
[334588565,1723284644107,-500.0,0.00020821,3]
[334588566,1723284644117,-500.0,0.00020821,3]
[334588567,1723284644126,-500.0,0.00020821,3]
[334588568,1723284644136,-151.0,0.00020821,2]
[334588569,1723284644145,-273.806273,0.00020821,2]
[334588570,1723284644154,-500.0,0.00020821,3]
[334588571,1723284644164,-500.0,0.00020821,3]
[334588572,1723284644173,-500.0,0.00020821,3]
[334588573,1723284644182,-751.48,0.00020821,3]
[334588574,1723284644191,-671.88,0.00020821,3]
[334588575,1723284644200,-500.0,0.00020821,3]
[334588576,1723284644209,-630.19,0.00020821,3]
[334588577,1723284644218,-793.36,0.00020821,3]
[334588578,1723284644227,-500.0,0.00020821,3]
[334588579,1723284644236,-507.01360164,0.00020821,3]
[334588580,1723284644247,-495.66488613,0.00020821,3]
[334588581,1723284644257,-500.0,0.00020821,3]
[334588582,1723284644266,-500.0,0.00020821,3]
[334588583,1723284644275,-500.0,0.00020821,3]
[334588584,1723284644284,-507.49885772,0.00020821,3]
[334588585,1723284644293,-891.54,0.00020821,3]
[334588586,1723284644302,-500.0,0.00020821,3]
[334588587,1723284644311,-670.89,0.00020821,3]
[334588588,1723284644323,-500.0,0.00020821,3]
[334588589,1723284644333,-978.65,0.00020821,3]
[334588590,1723284644344,-500.0,0.00020821,3]
[334588591,1723284644355,-807.16,0.00020821,3]
[334588592,1723284644366,-500.0,0.00020821,3]
[334588593,1723284644376,-693.32,0.00020821,3]